[Event "RUS-ch Men Blitz 2019"]
[Site "Sochi"]
[Date "2019.10.17"]
[Round "3.12"]
[White "Rozum, Ivan"]
[Black "Gochelashvili, David"]
[Result "0-1"]
[ECO "E68"]
[WhiteElo "2599"]
[BlackElo "2403"]
[Annotator "ChessBase"]
[PlyCount "82"]
[EventDate "2019.10.17"]
[EventType "swiss"]
[EventCountry "RUS"]
[SourceTitle "playchess.com"]
[Source "ChessBase"]
[SourceQuality "1"]
[TimeControl "180+2"]

1. c4 {[%emt 0:00:00]} g6 {[%emt 0:00:00]} 2. g3 {[%emt 0:00:02]} Bg7 {[%emt 0:00:02]} 3. Bg2 {[%emt 0:00:00]} Nf6 {[%emt 0:00:02]} 4. Nc3 {[%emt 0:00:02]} e5 {[%emt 0:00:02]} 5. Nf3 {[%emt 0:00:03]} d6 {[%emt 0:00:07]} 6. d4 {[%emt 0:00:02]} Nbd7 {[%emt 0:00:07]} 7. O-O {[%emt 0:00:02]} O-O {[%emt 0:00:01]} 8. e4 {[%emt 0:00:01]} c6 {[%emt 0:00:08]} 9. Re1 {[%emt 0:00:01]} exd4 {[%emt 0:00:16]} 10. Nxd4 {[%emt 0:00:01]} Qb6 {[%emt 0:00:02]} 11. Re2 {[%emt 0:00:16]} Ng4 {[%emt 0:00:20]} 12. Rd2 {[%emt 0:00:06]} Nc5 {[%emt 0:00:13]} 13. h3 {[%emt 0:00:21]} Ne5 {[%emt 0:00:03]} 14. b3 {[%emt 0:00:01]} f5 {[%emt 0:00:07]} 15. exf5 {[%emt 0:00:03]} gxf5 {[%emt 0:00:01]} 16. Nce2 {[%emt 0:00:51]} Ne4 {[%emt 0:00:22]} 17. Rc2 {[%emt 0:00:01]} Bd7 {[%emt 0:00:19]} 18. Bb2 {[%emt 0:00:24]} Ng6 {[%emt 0:00:11]} 19. Qf1 {[%emt 0:00:42]} Rae8 {[%emt 0:00:02]} 20. f4 {[%emt 0:00:18]} Nxg3 {[%emt 0:00:06]} 21. Nxg3 {[%emt 0:00:05]} Bxd4+ {[%emt 0:00:01]} 22. Kh1 {[%emt 0:00:02]} Bxb2 {[%emt 0:00:04]} 23. Rxb2 {[%emt 0:00:03]} Qd4 {[%emt 0:00:48]} 24. Rf2 {[%emt 0:00:01]} Nh4 {[%emt 0:00:02]} 25. Rd1 {[%emt 0:00:03]} Qf6 {[%emt 0:00:01]} 26. Rfd2 {[%emt 0:00:03]} Re6 {[%emt 0:00:01]} 27. Qf2 {[%emt 0:00:04]} Qh6 {[%emt 0:00:05]} 28. Bf1 {[%emt 0:00:08]} c5 {[%emt 0:00:02]} 29. Kh2 {[%emt 0:00:02]} Bc6 {[%emt 0:00:01]} 30. Rd3 {[%emt 0:00:02]} Rfe8 {[%emt 0:00:02]} 31. Qd2 {[%emt 0:00:05]} Nf3+ {[%emt 0:00:05]} 32. Rxf3 {[%emt 0:00:00]} Bxf3 {[%emt 0:00:01]} 33. Nxf5 {[%emt 0:00:04]} Qf6 {[%emt 0:00:10]} 34. Nxd6 {[%emt 0:00:03]} Re2+ {[%emt 0:00:02]} 35. Bxe2 {[%emt 0:00:02]} Rxe2+ {[%emt 0:00:01]} 36. Kg3 {[%emt 0:00:03]} Qg6+ {[%emt 0:00:09]} 37. Kh4 {[%emt 0:00:03]} Rxd2 {[%emt 0:00:01]} 38. Rxd2 {[%emt 0:00:00]} Kh8 {[%emt 0:00:05]} 39. Nb5 {[%emt 0:00:08]} a6 {[%emt 0:00:02]} 40. Nc3 {[%emt 0:00:02]} Qf6+ {[%emt 0:00:02]} 41. Kg3 {[%emt 0:00:02]} Qxc3 {[%emt 0:00:02]} 0-1

[Event "RUS-ch Men Blitz 2019"]
[Site "Sochi"]
[Date "2019.10.17"]
[Round "3.13"]
[White "Nechaev, Oleg"]
[Black "Sakaev, Konstantin"]
[Result "0-1"]
[ECO "A45"]
[WhiteElo "2371"]
[BlackElo "2595"]
[Annotator "ChessBase"]
[PlyCount "55"]
[EventDate "2019.10.17"]
[EventType "swiss"]
[EventCountry "RUS"]
[SourceTitle "playchess.com"]
[Source "ChessBase"]
[SourceQuality "1"]
[TimeControl "180+2"]

1. d4 {[%emt 0:00:00]} Nf6 {[%emt 0:00:00]} 2. Bg5 {[%emt 0:00:02]} d5 {[%emt 0:00:03]} 3. e3 {[%emt 0:00:02]} c5 {[%emt 0:00:03]} 4. c3 {[%emt 0:00:03]} Qb6 {[%emt 0:00:10]} 5. Qc2 {[%emt 0:00:14]} Ne4 {[%emt 0:00:14]} 6. Bf4 {[%emt 0:00:01]} Bf5 {[%emt 0:00:04]} 7. Qb3 {[%emt 0:00:31]} c4 {[%emt 0:00:22]} 8. Qxb6 {[%emt 0:00:02]} axb6 {[%emt 0:00:01]} 9. f3 {[%emt 0:00:12]} Nf6 {[%emt 0:00:01]} 10. e4 {[%emt 0:00:05]} dxe4 {[%emt 0:00:16]} 11. Bxc4 {[%emt 0:00:02]} Nc6 {[%emt 0:00:02]} 12. Nd2 {[%emt 0:00:06]} e6 {[%emt 0:00:07]} 13. fxe4 {[%emt 0:00:11]} Nxe4 {[%emt 0:00:01]} 14. Ngf3 {[%emt 0:00:01]} Bd6 {[%emt 0:00:06]} 15. Bxd6 {[%emt 0:00:12]} Nxd6 {[%emt 0:00:01]} 16. Be2 {[%emt 0:00:03]} b5 {[%emt 0:00:06]} 17. O-O {[%emt 0:00:06]} b4 {[%emt 0:00:01]} 18. c4 {[%emt 0:00:05]} O-O {[%emt 0:00:16]} 19. Nb3 {[%emt 0:00:53]} Rfd8 {[%emt 0:00:03]} 20. a3 {[%emt 0:00:29]} Bc2 {[%emt 0:00:06]} 21. Nc5 {[%emt 0:00:08]} b6 {[%emt 0:00:09]} 22. Nd3 {[%emt 0:00:01]} bxa3 {[%emt 0:00:15]} 23. Rxa3 {[%emt 0:00:02]} Rxa3 {[%emt 0:00:03]} 24. bxa3 {[%emt 0:00:01]} Nxc4 {[%emt 0:00:02]} 25. Rc1 {[%emt 0:00:06]} Nxa3 {[%emt 0:00:04]} 26. Nde5 {[%emt 0:00:03]} Nxe5 {[%emt 0:00:10]} 27. Nxe5 {[%emt 0:00:10]} f6 {[%emt 0:00:07]} 28. Nc4 {[%emt 0:00:05]} 0-1

[Event "RUS-ch Men Blitz 2019"]
[Site "Sochi"]
[Date "2019.10.17"]
[Round "3.14"]
[White "Jary, Sergey"]
[Black "Antipov, Mikhail Al."]
[Result "0-1"]
[ECO "A04"]
[WhiteElo "2275"]
[BlackElo "2567"]
[Annotator "ChessBase"]
[PlyCount "80"]
[EventDate "2019.10.17"]
[EventType "swiss"]
[EventCountry "RUS"]
[SourceTitle "playchess.com"]
[Source "ChessBase"]
[SourceQuality "1"]
[TimeControl "180+2"]

1. Nf3 {[%emt 0:00:00]} c5 {[%emt 0:00:00]} 2. g3 {[%emt 0:00:00]} g6 {[%emt 0:00:01]} 3. h4 {[%emt 0:00:01]} h5 {[%emt 0:00:19]} 4. Bg2 {[%emt 0:00:02]} Bg7 {[%emt 0:00:01]} 5. c4 {[%emt 0:00:01]} Nc6 {[%emt 0:00:05]} 6. Nc3 {[%emt 0:00:01]} Nh6 {[%emt 0:00:02]} 7. d3 {[%emt 0:00:01]} Nf5 {[%emt 0:00:02]} 8. a3 {[%emt 0:00:06]} d6 {[%emt 0:00:08]} 9. Bd2 {[%emt 0:00:03]} Bd7 {[%emt 0:00:17]} 10. Rb1 {[%emt 0:00:01]} a5 {[%emt 0:00:03]} 11. a4 {[%emt 0:00:14]} O-O {[%emt 0:00:17]} 12. Nb5 {[%emt 0:00:04]} Nb4 {[%emt 0:00:10]} 13. Bc3 {[%emt 0:00:05]} e5 {[%emt 0:00:01]} 14. O-O {[%emt 0:00:05]} Bc6 {[%emt 0:00:04]} 15. e4 {[%emt 0:00:11]} Nd4 {[%emt 0:00:10]} 16. Nbxd4 {[%emt 0:00:12]} cxd4 {[%emt 0:00:07]} 17. Bxb4 {[%emt 0:00:01]} axb4 {[%emt 0:00:01]} 18. b3 {[%emt 0:00:04]} Bh6 {[%emt 0:00:06]} 19. Bh3 {[%emt 0:00:24]} f5 {[%emt 0:00:11]} 20. Re1 {[%emt 0:00:15]} fxe4 {[%emt 0:00:01]} 21. dxe4 {[%emt 0:00:01]} Qf6 {[%emt 0:00:12]} 22. Bg2 {[%emt 0:00:02]} Bd7 {[%emt 0:00:02]} 23. Qc2 {[%emt 0:00:28]} Rf7 {[%emt 0:00:14]} 24. Rf1 {[%emt 0:00:10]} Raf8 {[%emt 0:00:07]} 25. Qd3 {[%emt 0:00:08]} Qe6 {[%emt 0:00:19]} 26. Rb2 {[%emt 0:00:10]} Rf6 {[%emt 0:00:12]} 27. Rc2 {[%emt 0:00:05]} b6 {[%emt 0:00:03]} 28. Ne1 {[%emt 0:00:19]} g5 {[%emt 0:00:02]} 29. hxg5 {[%emt 0:00:08]} Bxg5 {[%emt 0:00:01]} 30. Nf3 {[%emt 0:00:02]} Rg6 {[%emt 0:00:09]} 31. Nxg5 {[%emt 0:00:10]} Rxg5 {[%emt 0:00:01]} 32. f4 {[%emt 0:00:02]} Rg7 {[%emt 0:00:10]} 33. f5 {[%emt 0:00:02]} Qh6 {[%emt 0:00:02]} 34. Rf3 {[%emt 0:00:06]} Kf7 {[%emt 0:00:10]} 35. Qd2 {[%emt 0:00:04]} Qxd2 {[%emt 0:00:05]} 36. Rxd2 {[%emt 0:00:00]} Rfg8 {[%emt 0:00:01]} 37. Rdd3 {[%emt 0:00:02]} Bc6 {[%emt 0:00:03]} 38. Rf2 {[%emt 0:00:08]} Rxg3 {[%emt 0:00:02]} 39. Rxg3 {[%emt 0:00:03]} Rxg3 {[%emt 0:00:01]} 40. Rf3 {[%emt 0:00:04]} Rxg2+ {[%emt 0:00:03]} 0-1

[Event "RUS-ch Men Blitz 2019"]
[Site "Sochi"]
[Date "2019.10.17"]
[Round "3.15"]
[White "Triapishko, Alexandr"]
[Black "Mikhailovsky, Vladimir"]
[Result "1-0"]
[ECO "A06"]
[WhiteElo "2514"]
[BlackElo "2209"]
[Annotator "ChessBase"]
[PlyCount "81"]
[EventDate "2019.10.17"]
[EventType "swiss"]
[EventCountry "RUS"]
[SourceTitle "playchess.com"]
[Source "ChessBase"]
[SourceQuality "1"]
[TimeControl "180+2"]

1. Nf3 {[%emt 0:00:00]} d5 {[%emt 0:00:00]} 2. g3 {[%emt 0:00:01]} Nc6 {[%emt 0:00:00]} 3. d4 {[%emt 0:00:06]} Bg4 {[%emt 0:00:03]} 4. Bg2 {[%emt 0:00:05]} e6 {[%emt 0:00:02]} 5. c4 {[%emt 0:00:09]} Bb4+ {[%emt 0:00:02]} 6. Bd2 {[%emt 0:00:09]} Bxd2+ {[%emt 0:00:13]} 7. Nbxd2 {[%emt 0:00:09]} Nge7 {[%emt 0:00:04]} 8. O-O {[%emt 0:00:07]} dxc4 {[%emt 0:00:18]} 9. Qa4 {[%emt 0:00:18]} O-O {[%emt 0:00:13]} 10. Qxc4 {[%emt 0:00:02]} Bxf3 {[%emt 0:00:16]} 11. Nxf3 {[%emt 0:00:02]} Qd6 {[%emt 0:00:02]} 12. e3 {[%emt 0:00:08]} Rad8 {[%emt 0:00:18]} 13. Rac1 {[%emt 0:00:02]} h6 {[%emt 0:00:20]} 14. Qc5 {[%emt 0:00:05]} b6 {[%emt 0:00:23]} 15. Qc3 {[%emt 0:00:14]} Rd7 {[%emt 0:00:04]} 16. a3 {[%emt 0:00:13]} a5 {[%emt 0:00:13]} 17. Nd2 {[%emt 0:00:05]} Nd8 {[%emt 0:00:39]} 18. Nc4 {[%emt 0:00:32]} Nd5 {[%emt 0:00:01]} 19. Qc2 {[%emt 0:00:05]} Qe7 {[%emt 0:00:02]} 20. Ne5 {[%emt 0:00:01]} Rd6 {[%emt 0:00:04]} 21. Bxd5 {[%emt 0:00:02]} Rxd5 {[%emt 0:00:09]} 22. Qxc7 {[%emt 0:00:03]} Qxc7 {[%emt 0:00:07]} 23. Rxc7 {[%emt 0:00:01]} Rb5 {[%emt 0:00:01]} 24. Nd3 {[%emt 0:00:26]} f6 {[%emt 0:00:05]} 25. a4 {[%emt 0:00:15]} Rb3 {[%emt 0:00:05]} 26. Rc3 {[%emt 0:00:01]} Rxc3 {[%emt 0:00:01]} 27. bxc3 {[%emt 0:00:01]} Nb7 {[%emt 0:00:00]} 28. Rb1 {[%emt 0:00:04]} Nd6 {[%emt 0:00:04]} 29. Rxb6 {[%emt 0:00:02]} Ne4 {[%emt 0:00:01]} 30. c4 {[%emt 0:00:04]} e5 {[%emt 0:00:01]} 31. c5 {[%emt 0:00:10]} exd4 {[%emt 0:00:02]} 32. exd4 {[%emt 0:00:00]} Rd8 {[%emt 0:00:03]} 33. c6 {[%emt 0:00:11]} Kh7 {[%emt 0:00:00]} 34. c7 {[%emt 0:00:05]} Rc8 {[%emt 0:00:02]} 35. Rc6 {[%emt 0:00:01]} f5 {[%emt 0:00:07]} 36. d5 {[%emt 0:00:01]} Nf6 {[%emt 0:00:01]} 37. d6 {[%emt 0:00:01]} Kg8 {[%emt 0:00:02]} 38. Nc5 {[%emt 0:00:01]} Kf7 {[%emt 0:00:02]} 39. d7 {[%emt 0:00:01]} Nxd7 {[%emt 0:00:01]} 40. Nxd7 {[%emt 0:00:01]} Ke7 {[%emt 0:00:02]} 41. Nb6 {[%emt 0:00:01]} 1-0

[Event "RUS-ch Men Blitz 2019"]
[Site "Sochi"]
[Date "2019.10.20"]
[Round "3.16"]
[White "Remizov, Yaroslav"]
[Black "Ozgibcev, Anatoly"]
[Result "1-0"]
[ECO "B01"]
[WhiteElo "2394"]
[BlackElo "2367"]
[Annotator "NA"]
[PlyCount "51"]
[EventDate "2019.10.17"]
[EventType "swiss"]
[EventCountry "RUS"]
[SourceTitle "playchess.com"]
[Source "ChessBase"]
[SourceQuality "1"]
[TimeControl "180+2"]

1. e4 {[%emt 0:00:00]} d5 {[%emt 0:00:00]} 2. exd5 {[%emt 0:00:04]} Nf6 {[%emt 0:00:00]} 3. Nf3 {[%emt 0:00:02]} Qxd5 {[%emt 0:00:03]} 4. Nc3 {[%emt 0:00:02]} Qd6 {[%emt 0:00:01]} 5. d4 {[%emt 0:00:03]} a6 {[%emt 0:00:02]} 6. g3 {[%emt 0:00:02]} Bg4 {[%emt 0:00:02]} 7. Bg2 {[%emt 0:00:03]} Nc6 {[%emt 0:00:02]} 8. O-O {[%emt 0:00:14]} O-O-O {[%emt 0:00:02]} 9. h3 {[%emt 0:00:51]} Bh5 {[%emt 0:00:04]} 10. g4 {[%emt 0:00:33]} Bg6 {[%emt 0:00:02]} 11. Be3 {[%emt 0:00:02]} e6 {[%emt 0:00:07]} 12. Qe2 {[%emt 0:00:07]} Be7 {[%emt 0:00:21]} 13. Rfd1 {[%emt 0:00:02]} Nd5 {[%emt 0:00:03]} 14. Nxd5 {[%emt 0:00:05]} exd5 {[%emt 0:00:02]} 15. c4 {[%emt 0:00:17]} Be4 {[%emt 0:00:08]} 16. c5 {[%emt 0:00:24]} Qd7 {[%emt 0:00:02]} 17. b4 {[%emt 0:00:08]} h5 {[%emt 0:00:27]} 18. b5 {[%emt 0:00:18]} axb5 {[%emt 0:00:12]} 19. Qxb5 {[%emt 0:00:01]} Nb8 {[%emt 0:00:07]} 20. Qb3 {[%emt 0:00:08]} Nc6 {[%emt 0:00:07]} 21. Rab1 {[%emt 0:00:05]} Rde8 {[%emt 0:00:38]} 22. Qxb7+ Kd8 23. Qa8+ {[%emt 0:00:06]} Qc8 {[%emt 0:00:05]} 24. Qxc6 {[%emt 0:00:00]} hxg4 {[%emt 0:00:03]} 25. Ne5 {[%emt 0:00:03]} Ref8 {[%emt 0:00:20]} 26. Rb8 {[%emt 0:00:01]} 1-0

[Event "RUS-ch Men Blitz 2019"]
[Site "Sochi"]
[Date "2019.10.17"]
[Round "3.17"]
[White "Shcherbin, Matvei"]
[Black "Khegay, Dmitriy"]
[Result "1/2-1/2"]
[ECO "B06"]
[WhiteElo "2366"]
[BlackElo "2509"]
[Annotator "RC"]
[PlyCount "176"]
[EventDate "2019.10.17"]
[EventType "swiss"]
[EventCountry "RUS"]
[SourceTitle "playchess.com"]
[Source "ChessBase"]
[SourceQuality "1"]
[TimeControl "180+2"]

1. e4 {[%emt 0:00:00]} g6 {[%emt 0:00:03]} 2. d4 {[%emt 0:00:00]} Bg7 {[%emt 0:00:01]} 3. Nc3 {[%emt 0:00:01]} d6 {[%emt 0:00:00]} 4. Bg5 {[%emt 0:00:01]} a6 {[%emt 0:00:02]} 5. f4 {[%emt 0:00:01]} b5 {[%emt 0:00:02]} 6. Nf3 {[%emt 0:00:01]} Bb7 {[%emt 0:00:01]} 7. Qd2 {[%emt 0:00:08]} Nf6 {[%emt 0:00:12]} 8. e5 {[%emt 0:00:13]} Ne4 {[%emt 0:00:09]} 9. Nxe4 Bxe4 10. Bd3 {[%emt 0:00:15]} Bxd3 {[%emt 0:00:45]} 11. Qxd3 {[%emt 0:00:01]} O-O {[%emt 0:00:02]} 12. O-O-O Qd7 13. d5 {[%emt 0:00:32]} dxe5 {[%emt 0:01:27]} 14. fxe5 {[%emt 0:00:04]} c5 {[%emt 0:00:01]} 15. Rhe1 {[%emt 0:00:08]} e6 {[%emt 0:00:04]} 16. Kb1 {[%emt 0:00:41]} c4 {[%emt 0:00:11]} 17. Qe4 {[%emt 0:00:01]} exd5 {[%emt 0:00:03]} 18. Rxd5 {[%emt 0:00:01]} Qb7 {[%emt 0:00:01]} 19. Rd6 {[%emt 0:00:04]} Qxe4 {[%emt 0:00:07]} 20. Rxe4 {[%emt 0:00:00]} Re8 {[%emt 0:00:07]} 21. Re1 {[%emt 0:00:10]} Bf8 {[%emt 0:00:02]} 22. Rd5 {[%emt 0:00:16]} Nc6 {[%emt 0:00:01]} 23. Bf6 {[%emt 0:00:09]} Be7 {[%emt 0:00:12]} 24. g4 {[%emt 0:00:26]} Bf8 {[%emt 0:00:06]} 25. g5 {[%emt 0:00:05]} Re6 {[%emt 0:00:02]} 26. Red1 {[%emt 0:00:02]} Rae8 {[%emt 0:00:01]} 27. Nd4 {[%emt 0:00:10]} Nxd4 {[%emt 0:00:02]} 28. R5xd4 {[%emt 0:00:01]} h6 {[%emt 0:00:02]} 29. h4 {[%emt 0:00:01]} Bc5 {[%emt 0:00:05]} 30. Rd8 {[%emt 0:00:02]} h5 {[%emt 0:00:03]} 31. Rxe8+ {[%emt 0:00:05]} Rxe8 {[%emt 0:00:01]} 32. Rd7 {[%emt 0:00:18]} Bf2 {[%emt 0:00:01]} 33. e6 {[%emt 0:00:00]} fxe6 {[%emt 0:00:05]} 34. Rg7+ {[%emt 0:00:02]} Kf8 {[%emt 0:00:00]} 35. Rxg6 {[%emt 0:00:01]} Bxh4 {[%emt 0:00:03]} 36. Rh6 {[%emt 0:00:02]} Kf7 {[%emt 0:00:02]} 37. Rxh5 {[%emt 0:00:01]} Bg3 {[%emt 0:00:03]} 38. Kc1 {[%emt 0:00:05]} Kg6 {[%emt 0:00:00]} 39. Rh6+ {[%emt 0:00:04]} Kf5 {[%emt 0:00:01]} 40. Kd1 {[%emt 0:00:03]} Bf4 {[%emt 0:00:02]} 41. Rh5 {[%emt 0:00:04]} Rg8 {[%emt 0:00:00]} 42. Ke2 {[%emt 0:00:02]} Bxg5 {[%emt 0:00:01]} 43. Bxg5 Rxg5 {[%emt 0:00:01]} 44. Rh2 {[%emt 0:00:02]} Ke4 {[%emt 0:00:00]} 45. c3 {[%emt 0:00:00]} Rg4 {[%emt 0:00:00]} 46. Rf2 {[%emt 0:00:01]} e5 47. Rg2 {[%emt 0:00:01]} Rh4 {[%emt 0:00:03]} 48. Rf2 {[%emt 0:00:00] Kf4 Rf3+ Kg4 Rf2} Rh3 {[%emt 0:00:00]} 49. Rg2 {[%emt 0:00:00]} Kf4 {[%emt 0:00:01]} 50. Rf2+ {[%emt 0:00:04]} Ke4 {[%emt 0:00:00]} 51. Rg2 {[%emt 0:00:01]} Re3+ {[%emt 0:00:01]} 52. Kd2 {[%emt 0:00:01]} Rf3 {[%emt 0:00:01]} 53. Ke2 {[%emt 0:00:07]} Rf4 {[%emt 0:00:02]} 54. Rg6 {[%emt 0:00:02]} Rh4 {[%emt 0:00:02]} 55. Rg2 {[%emt 0:00:03]} a5 {[%emt 0:00:00]} 56. a3 {[%emt 0:00:01]} b4 {[%emt 0:00:03]} 57. axb4 {[%emt 0:00:02]} axb4 {[%emt 0:00:01]} 58. cxb4 Rh3 {[%emt 0:00:01]} 59. Rg4+ {[%emt 0:00:07]} Kd5 {[%emt 0:00:00]} 60. Kd2 {[%emt 0:00:01]} Rb3 {[%emt 0:00:10]} 61. Kc2 {[%emt 0:00:00]} Rxb4 {[%emt 0:00:00]} 62. Rh4 {[%emt 0:00:03]} Rb3 {[%emt 0:00:03]} 63. Rg4 {[%emt 0:00:02]} Rh3 {[%emt 0:00:01]} 64. Kd2 {[%emt 0:00:02]} e4 {[%emt 0:00:02]} 65. Rg8 {[%emt 0:00:04]} Rh2+ {[%emt 0:00:07]} 66. Kc3 {[%emt 0:00:01]} Rh3+ {[%emt 0:00:04]} 67. Kd2 {[%emt 0:00:00]} Rd3+ {[%emt 0:00:03]} 68. Kc2 {[%emt 0:00:01]} Kd4 {[%emt 0:00:01]} 69. Rd8+ {[%emt 0:00:05]} Ke3 {[%emt 0:00:09]} 70. Rc8 {[%emt 0:00:01]} Rd2+ {[%emt 0:00:01]} 71. Kc3 {[%emt 0:00:01]} Rd1 {[%emt 0:00:02]} 72. Kc2 {[%emt 0:00:03]} Rd2+ {[%emt 0:00:08]} 73. Kc3 {[%emt 0:00:01]} Rd1 {[%emt 0:00:01]} 74. Kc2 {[%emt 0:00:00]} Rd4 {[%emt 0:00:01]} 75. Kc3 {[%emt 0:00:01]} Rd1 {[%emt 0:00:01]} 76. Kc2 {[%emt 0:00:02]} Rd7 {[%emt 0:00:02]} 77. Rxc4 Kf3 {[%emt 0:00:00]} 78. Rc8 {[%emt 0:00:07]} e3 {[%emt 0:00:01]} 79. Rf8+ {[%emt 0:00:02]} Kg2 {[%emt 0:00:03]} 80. Rg8+ {[%emt 0:00:04]} Kf2 {[%emt 0:00:02]} 81. Rf8+ {[%emt 0:00:00]} Ke1 {[%emt 0:00:01]} 82. b4 {[%emt 0:00:01]} e2 {[%emt 0:00:02]} 83. Re8 {[%emt 0:00:05]} Rd5 {[%emt 0:00:05]} 84. Kc3 {[%emt 0:00:04]} Kd1 {[%emt 0:00:02]} 85. Kc4 {[%emt 0:00:01]} Rd2 {[%emt 0:00:04]} 86. b5 {[%emt 0:00:03]} Rc2+ {[%emt 0:00:02]} 87. Kd5 {[%emt 0:00:01]} Rb2 {[%emt 0:00:03]} 88. Kc6 {[%emt 0:00:01]} Rc2+ {[%emt 0:00:01]} 1/2-1/2

[Event "RUS-ch Men Blitz 2019"]
[Site "Sochi"]
[Date "2019.10.17"]
[Round "3.18"]
[White "Remizov, Yaroslav"]
[Black "Drygalov, Andrey"]
[Result "0-1"]
[ECO "B41"]
[WhiteElo "2394"]
[BlackElo "2484"]
[Annotator "ChessBase"]
[PlyCount "100"]
[EventDate "2019.10.17"]
[EventType "swiss"]
[EventCountry "RUS"]
[SourceTitle "playchess.com"]
[Source "ChessBase"]
[SourceQuality "1"]
[TimeControl "180+2"]

1. e4 {[%emt 0:00:00]} c5 {[%emt 0:00:00]} 2. Nf3 {[%emt 0:00:00]} e6 {[%emt 0:00:00]} 3. d4 cxd4 {[%emt 0:00:00]} 4. Nxd4 {[%emt 0:00:02]} a6 {[%emt 0:00:01]} 5. c4 {[%emt 0:00:01]} Nf6 {[%emt 0:00:01]} 6. Nc3 {[%emt 0:00:01]} Qc7 {[%emt 0:00:01]} 7. Be2 {[%emt 0:00:01]} Bb4 {[%emt 0:00:02]} 8. O-O {[%emt 0:00:13]} O-O {[%emt 0:00:09]} 9. Bg5 {[%emt 0:00:15]} Bxc3 {[%emt 0:00:05]} 10. Bxf6 {[%emt 0:00:02]} Bb4 {[%emt 0:00:45]} 11. Bh4 {[%emt 0:00:50]} Nc6 {[%emt 0:00:02]} 12. Bg3 {[%emt 0:00:06]} e5 {[%emt 0:00:16]} 13. Nc2 {[%emt 0:01:00]} Bc5 {[%emt 0:00:06]} 14. Kh1 {[%emt 0:00:00]} d6 {[%emt 0:00:14]} 15. f4 {[%emt 0:00:01]} exf4 {[%emt 0:00:44]} 16. Bxf4 {[%emt 0:00:01]} Be6 {[%emt 0:00:01]} 17. Qd2 {[%emt 0:00:08]} Ne5 {[%emt 0:00:06]} 18. b4 {[%emt 0:00:27]} Ba7 {[%emt 0:00:07]} 19. Bxe5 {[%emt 0:00:11]} dxe5 {[%emt 0:00:02]} 20. c5 {[%emt 0:00:01]} a5 {[%emt 0:00:20]} 21. a3 {[%emt 0:00:07]} b6 {[%emt 0:00:01]} 22. cxb6 {[%emt 0:00:04]} Bxb6 {[%emt 0:00:01]} 23. bxa5 {[%emt 0:00:02]} Bxa5 {[%emt 0:00:13]} 24. Nb4 {[%emt 0:00:01]} Rfd8 {[%emt 0:00:07]} 25. Qg5 {[%emt 0:00:05]} h6 {[%emt 0:00:13]} 26. Qg3 {[%emt 0:00:02]} Bxb4 {[%emt 0:00:06]} 27. axb4 {[%emt 0:00:00]} Rxa1 {[%emt 0:00:02]} 28. Rxa1 {[%emt 0:00:03]} Qc2 {[%emt 0:00:00]} 29. Qe1 {[%emt 0:00:10]} Qxe4 {[%emt 0:00:03]} 30. b5 {[%emt 0:00:01]} Bd5 {[%emt 0:00:04]} 31. Bf3 {[%emt 0:00:02]} Qxe1+ 32. Rxe1 {[%emt 0:00:00]} e4 {[%emt 0:00:06]} 33. Be2 {[%emt 0:00:02]} Rb8 {[%emt 0:00:02]} 34. Rd1 {[%emt 0:00:02]} Be6 {[%emt 0:00:01]} 35. h3 {[%emt 0:00:03]} Kf8 {[%emt 0:00:00]} 36. Kh2 {[%emt 0:00:00]} Ke7 {[%emt 0:00:01]} 37. Kg3 {[%emt 0:00:01]} g5 {[%emt 0:00:00]} 38. h4 f5 39. hxg5 {[%emt 0:00:04]} hxg5 {[%emt 0:00:01]} 40. Kf2 {[%emt 0:00:04]} f4 {[%emt 0:00:04]} 41. Rh1 {[%emt 0:00:03]} g4 {[%emt 0:00:08]} 42. Rh7+ {[%emt 0:00:04]} Kd6 {[%emt 0:00:01]} 43. Rh6 {[%emt 0:00:01]} Ke5 {[%emt 0:00:01]} 44. Rh5+ {[%emt 0:00:01]} Kd4 {[%emt 0:00:01]} 45. Rh6 {[%emt 0:00:04]} g3+ {[%emt 0:00:00]} 46. Ke1 {[%emt 0:00:01]} Bd5 {[%emt 0:00:04]} 47. b6 {[%emt 0:00:03]} f3 {[%emt 0:00:02]} 48. gxf3 {[%emt 0:00:01]} exf3 {[%emt 0:00:00]} 49. Ba6 {[%emt 0:00:04]} Ke3 {[%emt 0:00:03]} 50. Kf1 {[%emt 0:00:02]} g2+ {[%emt 0:00:02]} 0-1

[Event "RUS-ch Men Blitz 2019"]
[Site "Sochi"]
[Date "2019.10.17"]
[Round "3.19"]
[White "Sysolyatin, Evgeny"]
[Black "Lugovskoy, Maxim"]
[Result "1-0"]
[ECO "C15"]
[WhiteElo "2271"]
[BlackElo "2436"]
[Annotator "NA"]
[PlyCount "73"]
[EventDate "2019.10.17"]
[EventType "swiss"]
[EventCountry "RUS"]
[SourceTitle "playchess.com"]
[Source "ChessBase"]
[SourceQuality "1"]
[TimeControl "180+2"]

1. e4 {[%emt 0:00:00]} e6 {[%emt 0:00:00]} 2. d4 {[%emt 0:00:02]} d5 {[%emt 0:00:01]} 3. Nc3 {[%emt 0:00:02]} Bb4 {[%emt 0:00:01]} 4. Bb5+ {[%emt 0:00:02]} Bd7 {[%emt 0:00:05]} 5. Bd3 {[%emt 0:00:08]} dxe4 {[%emt 0:00:05]} 6. Bxe4 {[%emt 0:00:01]} Bc6 {[%emt 0:00:01]} 7. Bxc6+ {[%emt 0:00:13]} Nxc6 {[%emt 0:00:01]} 8. Nf3 {[%emt 0:00:02]} Nf6 {[%emt 0:00:01]} 9. O-O {[%emt 0:00:02]} Bxc3 {[%emt 0:00:01]} 10. bxc3 {[%emt 0:00:01]} Qd5 {[%emt 0:00:01]} 11. Qe2 {[%emt 0:00:10]} h6 {[%emt 0:00:05]} 12. Bf4 {[%emt 0:00:19]} Rc8 {[%emt 0:00:01]} 13. Rfd1 {[%emt 0:00:16]} O-O {[%emt 0:00:02]} 14. c4 {[%emt 0:00:04]} Qf5 {[%emt 0:00:00]} 15. Be3 {[%emt 0:00:09]} Rfd8 {[%emt 0:00:03]} 16. h3 {[%emt 0:00:10]} Qe4 {[%emt 0:00:04]} 17. Qd3 {[%emt 0:00:08]} Nb4 {[%emt 0:00:03]} 18. Qxe4 {[%emt 0:00:17]} Nxe4 {[%emt 0:00:01]} 19. Rac1 {[%emt 0:00:31]} Nc3 {[%emt 0:00:11]} 20. Rd2 {[%emt 0:00:02]} Nbxa2 {[%emt 0:00:17]} 21. Ra1 {[%emt 0:00:02]} c5 {[%emt 0:00:13]} 22. dxc5 {[%emt 0:00:05]} a5 {[%emt 0:00:07]} 23. Bd4 {[%emt 0:00:12]} a4 {[%emt 0:00:01]} 24. Kf1 {[%emt 0:00:06]} f6 {[%emt 0:00:05]} 25. Rd3 {[%emt 0:00:02]} e5 {[%emt 0:00:23]} 26. Bxc3 {[%emt 0:00:02]} Rxd3 {[%emt 0:00:04]} 27. cxd3 {[%emt 0:00:02]} Nxc3 {[%emt 0:00:01]} 28. Ra3 {[%emt 0:00:03]} b5 {[%emt 0:00:23]} 29. cxb6 {[%emt 0:00:08]} e4 {[%emt 0:00:02]} 30. Rxc3 {[%emt 0:00:05]} exf3 {[%emt 0:00:00]} 31. c5 {[%emt 0:00:02]} fxg2+ {[%emt 0:00:01]} 32. Kxg2 {[%emt 0:00:01]} Kf7 {[%emt 0:00:09]} 33. b7 {[%emt 0:00:01]} Rb8 {[%emt 0:00:02]} 34. c6 {[%emt 0:00:00]} a3 {[%emt 0:00:01]} 35. c7 {[%emt 0:00:03]} a2 {[%emt 0:00:00]} 36. Ra3 {[%emt 0:00:00]} Rxb7 {[%emt 0:00:04]} 37. c8=Q {[%emt 0:00:01]} 1-0